bitfinex/quotes_BTCUSD_20250608
["timestamp","ask_amount","ask_price","bid_price","bid_amount"]
[1749411551939,0.21770982,106410.0,106400.0,0.60028616]
[1749411552137,0.24910982,106410.0,106400.0,0.61908305]
[1749411552340,0.24910982,106410.0,106400.0,0.62848136]
[1749411552542,0.24910982,106410.0,106400.0,0.63787959]
[1749411552954,0.24910982,106410.0,106400.0,0.60968465]
[1749411553157,0.23971239,106410.0,106400.0,0.42171473]
[1749411553501,0.23971239,106410.0,106400.0,0.61908305]
[1749411554934,0.23971239,106410.0,106400.0,0.62848128]
[1749411555157,0.23971239,106410.0,106400.0,0.33476305]
[1749411555357,0.23971239,106410.0,106400.0,0.61908305]
[1749411555563,0.23971239,106410.0,106400.0,0.62848136]
[1749411556547,0.22441239,106410.0,106400.0,0.62848136]
[1749411556748,0.23991239,106410.0,106400.0,0.62848136]
[1749411558089,0.23051487,106410.0,106400.0,0.60968465]
[1749411558297,0.23051487,106410.0,106400.0,0.61908305]
[1749411558894,0.23051487,106410.0,106400.0,0.60968465]
[1749411560508,0.23051487,106410.0,106400.0,0.41231624]
[1749411561135,0.23051487,106410.0,106400.0,0.42171473]
[1749411561330,0.21501487,106410.0,106400.0,0.42171473]
[1749411561783,0.23151487,106410.0,106400.0,0.42171473]
[1749411563163,0.23151487,106410.0,106400.0,0.61908305]
[1749411563366,0.21501487,106410.0,106400.0,0.61908305]
[1749411565769,0.23001487,106410.0,106400.0,0.61908305]
[1749411566468,0.23001487,106410.0,106400.0,0.60968465]
[1749411567114,0.19891487,106410.0,106400.0,0.61908305]
[1749411570822,0.19891487,106410.0,106400.0,0.61904305]
[1749411571354,0.19891487,106410.0,106400.0,0.33476305]
[1749411571555,0.19891487,106410.0,106400.0,0.61904305]
[1749411573176,0.27220821,106410.0,106400.0,0.01705591]
[1749411573755,0.23041487,106410.0,106400.0,0.01705591]
[1749411573960,0.25297664,106410.0,106400.0,0.01705591]
[1749411574173,0.25297664,106410.0,106400.0,0.01505591]
[1749411574576,0.25297664,106410.0,106400.0,0.01605591]
[1749411575185,0.25497664,106410.0,106400.0,0.01605591]
[1749411577998,0.25493795,106410.0,106400.0,0.01605591]
[1749411578410,0.25493795,106410.0,106400.0,0.03059676]
[1749411578411,0.21721487,106410.0,106400.0,0.03059676]
[1749411578610,0.20091487,106410.0,106400.0,0.03059676]
[1749411598271,0.20091487,106410.0,106400.0,0.03054595]
[1749411598483,0.20091487,106410.0,106400.0,0.03049521]
[1749411599705,0.22343795,106410.0,106400.0,0.03049521]
[1749411609468,0.22343795,106410.0,106400.0,0.04649521]
[1749411609869,0.22343795,106410.0,106400.0,0.03049521]
[1749411613844,0.28274409,106410.0,106400.0,0.03049521]
[1749411614003,0.29834409,106410.0,106400.0,0.03049521]
[1749411614748,0.23903795,106410.0,106400.0,0.03049521]
[1749411617911,0.22343795,106410.0,106400.0,0.03049521]
[1749411624182,0.23923795,106410.0,106400.0,0.03049521]
[1749411626334,0.22343795,106410.0,106400.0,0.03049521]
[1749411673662,0.22343795,106410.0,106400.0,0.01595436]
[1749411673866,0.25463795,106410.0,106400.0,0.01595436]
[1749411674036,0.31394409,106410.0,106400.0,0.01595436]
[1749411674999,0.34209794,106410.0,106400.0,0.01595436]
[1749411677745,0.43849742,106410.0,106400.0,0.01595436]
[1749411682650,0.43854125,106410.0,106400.0,0.01595436]
[1749411684287,0.77854125,106410.0,106400.0,0.01595436]
[1749411684487,0.72782049,106410.0,106400.0,0.01595436]
[1749411684744,0.77853601,106410.0,106400.0,0.01595436]
[1749411691392,1.06273601,106410.0,106400.0,0.01595436]
[1749411696682,1.01202049,106410.0,106400.0,0.01595436]
[1749411696830,1.06271794,106410.0,106400.0,0.01595436]
[1749411701275,1.10030906,106410.0,106400.0,0.01595436]
[1749411707297,1.22465202,106410.0,106400.0,0.01595436]
[1749411707430,1.1870609,106410.0,106400.0,0.01595436]
[1749411708079,1.1870609,106410.0,106400.0,0.01495436]
[1749411708080,1.1850609,106410.0,106400.0,0.01495436]
[1749411708323,1.13175476,106410.0,106400.0,0.01495436]
[1749411708521,1.13475476,106410.0,106400.0,0.01495436]
[1749411709164,1.13175476,106410.0,106400.0,0.01495436]
[1749411709821,1.12775476,106410.0,106400.0,0.01495436]
[1749411710030,1.13175476,106410.0,106400.0,0.01495436]
[1749411710463,1.22815424,106410.0,106400.0,0.01495436]
[1749411710876,1.2469498,106410.0,106400.0,0.01495436]
[1749411711101,1.2751948,106410.0,106400.0,0.01495436]
[1749411711306,1.20001256,106410.0,106400.0,0.01495436]
[1749411713670,1.25001256,106410.0,106400.0,0.01495436]
[1749411713876,0.1974239,106370.0,106360.0,0.1071473]
[1749411715097,0.1974239,106370.0,106360.0,0.10762696]
[1749411715309,0.1974239,106370.0,106360.0,0.10862696]
[1749411716698,0.1974239,106370.0,106360.0,0.03327966]
[1749411723341,0.34325152,106370.0,106360.0,0.03327966]
[1749411723549,0.29382338,106370.0,106360.0,0.03327966]
[1749411727373,0.29382338,106370.0,106360.0,0.01747966]
[1749411727583,0.29382338,106370.0,106360.0,0.00147966]
[1749411728396,0.29382338,106370.0,106360.0,0.01727966]
[1749411729147,0.66562338,106370.0,106360.0,0.00147966]
[1749411729331,0.66562338,106370.0,106330.0,0.02458408]
[1749411729332,0.20688295,106340.0,106330.0,0.02458408]
[1749411729486,0.29320295,106340.0,106330.0,0.0246331]
[1749411729695,0.29320295,106340.0,106330.0,0.01584794]
[1749411729970,0.29320295,106340.0,106330.0,0.02463533]
[1749411730182,0.29320295,106340.0,106330.0,0.02463538]
[1749411730389,0.38960243,106340.0,106330.0,4.794e-05]
[1749411730596,0.40817734,106340.0,106330.0,4.794e-05]
[1749411730809,0.77997734,106340.0,106330.0,4.794e-05]
[1749411730991,0.78393463,106340.0,106330.0,4.794e-05]
[1749411731958,0.78393463,106340.0,106330.0,0.00104794]
[1749411733258,0.78493463,106340.0,106330.0,0.00104794]
[1749411733683,0.81301276,106340.0,106330.0,0.00104794]
[1749411735438,0.85053198,106340.0,106330.0,0.00104794]
[1749411735642,0.94693146,106340.0,106330.0,0.00104794]
[1749411736280,0.94593146,106340.0,106330.0,0.00104794]
[1749411736559,0.99893146,106340.0,106330.0,0.00104794]
[1749411736801,1.01893146,106340.0,106330.0,4.794e-05]
[1749411738094,1.01993146,106340.0,106330.0,4.794e-05]
[1749411738494,0.93361146,106340.0,106330.0,4.794e-05]
[1749411738699,1.30509146,106340.0,106330.0,4.794e-05]
[1749411742465,1.27701333,106340.0,106330.0,4.794e-05]
[1749411743850,0.90553333,106340.0,106330.0,4.794e-05]
[1749411744140,1.27717333,106340.0,106330.0,4.794e-05]
[1749411744581,1.33345217,106340.0,106330.0,4.794e-05]
[1749411744823,1.34287349,106340.0,106330.0,4.794e-05]
[1749411746417,0.53887221,106330.0,106320.0,0.02]
[1749411746686,0.72310361,106330.0,106320.0,0.02004797]
[1749411748295,0.72410361,106330.0,106320.0,0.02004797]
[1749411748677,0.73990361,106330.0,106320.0,0.02004797]
[1749411749127,0.75510361,106330.0,106320.0,0.02004797]
[1749411749515,0.73990361,106330.0,106320.0,0.02004797]
[1749411750494,0.71191802,106330.0,106320.0,0.02004797]
[1749411751388,0.72711802,106330.0,106320.0,0.02004797]
[1749411751584,0.72711802,106330.0,106310.0,0.02]
[1749411751585,0.66512601,106320.0,106310.0,0.02]
[1749411751831,0.5469608,106300.0,106290.0,0.0318]
[1749411752046,1.10278687,106300.0,106290.0,0.03184799]
[1749411752858,0.73122687,106300.0,106290.0,0.03184799]
[1749411753279,0.81802687,106300.0,106290.0,0.03184799]
[1749411754213,0.82202687,106300.0,106290.0,0.03184799]
[1749411754423,0.82502687,106300.0,106290.0,0.03184799]
[1749411754841,0.92142635,106300.0,106290.0,0.03184799]
[1749411755280,0.64182739,106300.0,106290.0,0.03184799]
[1749411755706,0.69129345,106300.0,106290.0,0.03184799]
[1749411756445,0.72862739,106300.0,106290.0,0.03184799]
[1749411757026,0.64182739,106300.0,106290.0,0.03184799]
[1749411757226,0.72862739,106300.0,106290.0,0.03184799]
[1749411757856,0.82502687,106300.0,106290.0,0.03184799]
[1749411758493,0.79702642,106300.0,106290.0,0.03184799]
[1749411759491,0.85302733,106300.0,106290.0,0.03184799]
[1749411760208,0.85002733,106300.0,106290.0,0.03184799]
[1749411760386,0.79402642,106300.0,106290.0,0.03184799]
[1749411760619,0.84702733,106300.0,106290.0,0.03184799]
[1749411760826,0.85102733,106300.0,106290.0,0.03184799]
[1749411761237,0.84702733,106300.0,106290.0,0.03184799]
[1749411761436,0.69462694,106300.0,106290.0,0.03184799]
[1749411761656,0.69662694,106300.0,106290.0,0.03184799]
[1749411762500,0.69662694,106300.0,106290.0,0.03047395]
[1749411762959,0.60982694,106300.0,106290.0,0.03047395]
[1749411763185,0.69662694,106300.0,106290.0,0.03047395]
[1749411765355,0.72470519,106300.0,106290.0,0.03047395]
[1749411766839,0.79418246,106300.0,106290.0,0.03047395]
[1749411773352,0.72184853,106300.0,106290.0,0.03047395]
[1749411775636,0.73724853,106300.0,106290.0,4.799e-05]
[1749411775834,0.83364801,106300.0,106290.0,4.799e-05]
[1749411776239,0.80556976,106300.0,106290.0,4.799e-05]
[1749411777276,0.79016976,106300.0,106290.0,4.799e-05]
[1749411777456,0.88656924,106300.0,106290.0,4.799e-05]
[1749411777826,0.8182854,106300.0,106290.0,0.01504799]
[1749411780060,0.8182854,106300.0,106290.0,0.01362181]
[1749411780488,0.79016976,106300.0,106290.0,0.01362181]
[1749411781279,0.70336976,106300.0,106290.0,0.01362181]
[1749411781479,1.13161067,106300.0,106290.0,0.02922181]
[1749411782499,1.07560976,106300.0,106290.0,0.02922181]
[1749411783887,0.70336976,106300.0,106290.0,0.02922181]
[1749411784092,0.88664924,106300.0,106290.0,0.02922181]
[1749411784552,0.79024976,106300.0,106290.0,0.02922181]
[1749411784779,0.81841271,106300.0,106290.0,0.02922181]
[1749411786850,0.73153271,106300.0,106290.0,0.02922181]
[1749411787057,0.81841271,106300.0,106290.0,0.02922181]
[1749411787871,0.73153271,106300.0,106290.0,0.02922181]
[1749411788292,0.81841271,106300.0,106290.0,0.02922181]
[1749411788917,0.78107877,106300.0,106290.0,0.02922181]
[1749411789490,0.78107516,106300.0,106290.0,0.02922181]
[1749411789684,0.69419516,106300.0,106290.0,0.02922181]
[1749411789887,0.78107516,106300.0,106290.0,0.02922181]
[1749411790829,0.59779568,106300.0,106290.0,0.02922181]
[1749411791032,0.68467568,106300.0,106290.0,0.02922181]
[1749411791243,0.59779568,106300.0,106290.0,0.02922181]
[1749411791456,0.22963371,106300.0,106290.0,0.21738626]
[1749411791662,0.22022682,106300.0,106290.0,0.22679448]
[1749411791887,0.21367632,106300.0,106290.0,0.02922181]
[1749411792309,0.21267632,106300.0,106290.0,0.02922181]
[1749411792528,0.18814675,106300.0,106290.0,0.02922181]
[1749411792733,0.18914675,106300.0,106290.0,0.02922181]
[1749411793983,0.18914675,106300.0,106290.0,0.04376266]
[1749411820776,0.21164335,106300.0,106290.0,0.04376266]
[1749411823331,0.21164335,106300.0,106290.0,0.32980266]
[1749411829590,0.21164335,106300.0,106290.0,0.33921088]
[1749411829837,0.21164335,106300.0,106290.0,0.53678346]
[1749411830725,0.21147222,106300.0,106290.0,0.53678346]
[1749411834552,0.22087938,106300.0,106290.0,0.5461915]
[1749411834744,0.22087938,106300.0,106290.0,0.55559945]
[1749411836222,0.22087938,106300.0,106290.0,0.5461915]
[1749411837654,0.21147222,106300.0,106290.0,0.5461915]
[1749411839452,0.21147222,106300.0,106290.0,0.53678346]
[1749411840925,0.21147222,106300.0,106290.0,0.5461915]
[1749411841920,0.21147222,106300.0,106290.0,0.55559945]
[1749411842471,0.21147222,106300.0,106290.0,0.33921088]
[1749411844431,0.21147222,106300.0,106290.0,0.32980266]
[1749411847050,0.21147222,106300.0,106290.0,0.33921088]
[1749411848098,0.21147222,106300.0,106290.0,0.52737533]
[1749411848443,0.21147222,106300.0,106290.0,0.33921088]
[1749411848652,0.21147222,106300.0,106290.0,0.53678346]
[1749411850341,0.21147222,106300.0,106290.0,0.54619141]
[1749411851571,0.21147222,106300.0,106290.0,0.53678346]
[1749411855817,0.21147222,106300.0,106290.0,0.5461915]
[1749411856497,0.22087946,106300.0,106290.0,0.5461915]
[1749411858646,0.19838286,106300.0,106290.0,0.5461915]
[1749411860995,0.19838286,106300.0,106290.0,0.53678346]
[1749411861819,0.19838286,106300.0,106290.0,0.25074346]
[1749411861820,0.19838286,106300.0,106290.0,0.53586346]
[1749411862074,0.22087946,106300.0,106290.0,0.53586346]
[1749411862593,0.21147222,106300.0,106290.0,0.33853088]
[1749411863074,0.21147222,106300.0,106290.0,0.34793901]
[1749411864956,0.18897562,106300.0,106290.0,0.34793901]
[1749411865163,0.21150675,106300.0,106290.0,0.34793901]
[1749411866202,0.21150675,106300.0,106290.0,0.33853088]
[1749411878536,0.21150675,106300.0,106290.0,0.52669533]
[1749411879861,0.21150675,106300.0,106290.0,0.53610337]
[1749411888039,0.21150675,106300.0,106290.0,0.51109533]
[1749411888924,0.21151524,106300.0,106290.0,0.51109533]
[1749411889408,0.21151524,106300.0,106290.0,0.52050346]
[1749411889980,0.21151524,106300.0,106290.0,0.5299115]
[1749411890580,0.21151524,106300.0,106290.0,0.53931945]
[1749411897207,0.21151524,106300.0,106290.0,0.5299115]
[1749411898211,0.21146532,106300.0,106290.0,0.30870907]
[1749411898494,0.2437154,106300.0,106290.0,0.29930085]
[1749411899795,0.24371589,106300.0,106290.0,0.29930085]
[1749411904234,0.24371589,106300.0,106280.0,0.30476]
[1749411904235,0.22987258,106290.0,106280.0,0.30476]
[1749411904443,0.22987258,106290.0,106280.0,0.30524004]
[1749411904647,0.22987258,106290.0,106280.0,0.31978089]
[1749411905489,0.22987258,106290.0,106280.0,0.32078089]
[1749411906733,0.21337258,106290.0,106280.0,0.32078089]
[1749411907140,0.21337258,106290.0,106280.0,0.32278089]
[1749411907349,0.19757258,106290.0,106280.0,0.32278089]
[1749411907759,0.20698053,106290.0,106280.0,0.51096305]
[1749411907992,0.22950126,106300.0,106290.0,0.20698044]
[1749411908203,0.23890859,106300.0,106290.0,0.19757258]
[1749411908408,0.23890859,106300.0,106290.0,0.20698062]
[1749411908827,0.22950143,106300.0,106290.0,0.22152138]
[1749411909058,0.22950143,106300.0,106290.0,0.25222138]
[1749411910001,0.22950143,106300.0,106290.0,0.25322138]
[1749411910421,0.22950143,106300.0,106290.0,0.24381343]
[1749411912173,0.22950143,106300.0,106290.0,0.22821343]
[1749411915400,0.22009419,106300.0,106290.0,0.22821343]
[1749411918516,0.22950126,106300.0,106290.0,0.83528366]
[1749411918720,0.22950126,106300.0,106290.0,0.83528384]
[1749411918915,0.22950126,106300.0,106290.0,0.23762147]
[1749411919584,0.20696115,106300.0,106290.0,0.24702933]
[1749411919985,0.19755408,106300.0,106290.0,0.23762147]
[1749411921498,0.19755408,106300.0,106290.0,0.24702942]
[1749411927981,0.25138036,106310.0,106300.0,0.18814675]
[1749411928209,0.22008036,106310.0,106300.0,1.10424454]
[1749411928419,0.21067391,106310.0,106300.0,0.30890793]
[1749411929693,0.18814444,106310.0,106300.0,0.30890793]
[1749411930174,0.18814444,106310.0,106300.0,0.33421526]
[1749411930423,0.18814444,106310.0,106300.0,0.33621526]
[1749411930640,0.18814444,106310.0,106300.0,0.33721526]
[1749411930845,0.18814444,106310.0,106300.0,0.51607493]
[1749411931054,0.18814444,106310.0,106300.0,0.52548217]
[1749411931949,0.18814444,106310.0,106300.0,0.32792818]
[1749411932369,0.18814444,106310.0,106300.0,0.33733542]
[1749411932582,0.18814444,106310.0,106300.0,0.52548217]
[1749411933500,0.18814444,106310.0,106300.0,0.53465526]
[1749411933933,0.18814444,106310.0,106300.0,0.33710127]
[1749411935265,0.18814444,106310.0,106300.0,0.52524802]
[1749411935707,0.18814444,106310.0,106300.0,0.53465518]
[1749411936144,0.18814444,106310.0,106300.0,0.52524802]
[1749411936378,0.22714083,106320.0,106300.0,1.15073132]
[1749411936617,0.03762509,106310.0,106300.0,1.16573132]
[1749411936840,0.22575414,106310.0,106300.0,1.1657315]
[1749411937102,0.22575414,106310.0,106300.0,0.56806913]
[1749411937321,0.22575414,106310.0,106300.0,0.56606913]
[1749411937537,0.03762509,106310.0,106300.0,0.66246861]
[1749411937768,0.22575414,106310.0,106300.0,0.67187541]
[1749411937995,0.21634813,106310.0,106300.0,0.65329552]
[1749411938209,0.21634813,106310.0,106300.0,0.65229552]
[1749411939118,0.21634813,106310.0,106300.0,0.65429552]
[1749411939332,0.21634813,106310.0,106300.0,0.65529552]
[1749411942463,0.02821908,106310.0,106300.0,0.66470232]
[1749411943453,0.21634813,106310.0,106300.0,0.66470232]
[1749411945219,0.02821908,106310.0,106300.0,1.26236407]
[1749411945925,0.02821908,106310.0,106300.0,0.6647017]
[1749411946574,0.01881263,106310.0,106300.0,0.6647017]
[1749411947478,0.01881228,106310.0,106300.0,0.6647017]
[1749411947686,0.02821802,106310.0,106300.0,0.6647017]
[1749411947892,0.02821802,106310.0,106300.0,1.26236407]
[1749411950223,0.03762438,106310.0,106300.0,1.26236407]
[1749411952930,0.03762438,106310.0,106300.0,1.26204407]
[1749411954160,0.01881175,106310.0,106300.0,1.26204407]
[1749411954370,0.02821802,106310.0,106300.0,0.97728407]
[1749411954571,0.01881175,106310.0,106300.0,1.26204407]
[1749411954780,0.02821793,106310.0,106300.0,1.26204407]
[1749411956239,0.01881051,106320.0,106310.0,0.27159392]
[1749411956448,0.21632743,106320.0,106310.0,0.25278235]
[1749411956663,0.20692222,106320.0,106310.0,0.25278235]
[1749411957911,0.00940477,106320.0,106310.0,0.84465055]
[1749411958122,0.03762022,106320.0,106310.0,0.86025055]
[1749411958553,0.04702561,106320.0,106310.0,0.86025055]
[1749411959201,0.03762022,106320.0,106310.0,0.95665003]
[1749411959618,0.03762022,106320.0,106310.0,0.95865003]
[1749411960438,0.03762022,106320.0,106310.0,0.95965003]
[1749411960655,0.04702561,106320.0,106310.0,0.95965003]
[1749411961903,0.04702561,106320.0,106310.0,1.24441003]
[1749411962332,0.01880971,106320.0,106310.0,1.24441003]
[1749411962537,0.58099005,106340.0,106320.0,0.21632698]
[1749411962538,0.24099005,106340.0,106320.0,0.21632698]
[1749411962767,0.21287969,106340.0,106330.0,0.50624361]
[1749411962978,0.22228313,106340.0,106330.0,0.50624361]
[1749411963218,0.01880662,106340.0,106330.0,1.23451402]
[1749411963457,0.02821024,106340.0,106330.0,1.25101402]
[1749411963679,0.03975769,106340.0,106330.0,1.25101402]
[1749411964107,0.22583367,106340.0,106330.0,1.24160996]
[1749411964322,0.04716148,106340.0,106330.0,1.25101411]
[1749411964544,0.04716148,106340.0,106330.0,1.25401411]
[1749411964781,0.23523746,106340.0,106330.0,1.24460996]
[1749411965004,0.22583428,106340.0,106330.0,0.64694759]
[1749411965212,0.22783428,106340.0,106330.0,0.64694759]
[1749411965451,0.0377583,106340.0,106330.0,0.65635165]
[1749411965874,0.0377583,106340.0,106330.0,0.65935165]
[1749411966095,0.02835451,106340.0,106330.0,0.65935165]
[1749411966339,0.02835451,106340.0,106330.0,1.25701402]
[1749411966777,0.0189508,106340.0,106330.0,1.25701402]
[1749411967215,0.01895036,106340.0,106330.0,1.25701402]
[1749411967477,0.02835398,106340.0,106330.0,1.25701402]
[1749411967692,0.01895036,106340.0,106330.0,1.25701402]
[1749411967914,0.02835398,106340.0,106330.0,1.25701402]
[1749411968371,0.01895036,106340.0,106330.0,1.25701402]
[1749411968586,0.02835389,106340.0,106330.0,1.25701402]
[1749411969023,0.01895036,106340.0,106330.0,1.25701402]
[1749411970224,0.00014374,106340.0,106330.0,1.25701402]
[1749411971341,0.22342279,106350.0,106340.0,0.24622741]
[1749411971556,0.22342279,106350.0,106340.0,0.35912689]
[1749411972444,0.22342279,106350.0,106340.0,0.34262707]
[1749411972912,0.22342279,106350.0,106340.0,0.34362707]
[1749411973154,0.22342279,106350.0,106340.0,0.34462707]
[1749411974050,0.22342279,106350.0,106340.0,0.35384652]
[1749411974252,0.22342279,106350.0,106340.0,0.36324987]
[1749411978896,0.22342279,106350.0,106340.0,0.96091224]
[1749411979787,0.02820775,106350.0,106340.0,0.98631542]
[1749411979972,0.04701348,106350.0,106340.0,0.98631542]
[1749411981559,0.03761057,106350.0,106340.0,0.98631542]
[1749411982171,0.03760969,106350.0,106340.0,0.98631542]
[1749411982385,0.03760969,106350.0,106340.0,0.97709597]
[1749411983292,0.03760969,106350.0,106340.0,0.94709597]
[1749411983490,0.03760969,106350.0,106340.0,0.96590329]
[1749411984061,0.03760969,106350.0,106340.0,1.05250329]
[1749411984674,0.02820696,106350.0,106340.0,1.05250329]
[1749411984876,0.0376096,106350.0,106340.0,1.05250329]
[1749411986956,0.04701233,106350.0,106340.0,1.05250329]
[1749411987807,0.0376096,106350.0,106340.0,1.05250329]
[1749411988009,0.04701233,106350.0,106340.0,1.05250329]
[1749411991119,0.04701304,106350.0,106340.0,1.05250329]
[1749411991366,0.03761022,106350.0,106340.0,1.05250329]
[1749412001283,0.02820749,106350.0,106340.0,1.05250329]
[1749412003267,0.03761022,106350.0,106340.0,1.03650329]
[1749412003691,0.03761022,106350.0,106340.0,1.32094329]
[1749412004547,0.22566851,106350.0,106340.0,1.00217676]
[1749412004754,0.22566895,106350.0,106340.0,1.29614011]
[1749412004963,0.22566895,106350.0,106340.0,0.69847774]
[1749412005184,0.03761066,106350.0,106340.0,0.70788092]
[1749412005392,0.04701357,106350.0,106340.0,0.69847774]
[1749412005638,0.23507186,106350.0,106340.0,0.30863095]
[1749412005825,0.23507186,106350.0,106340.0,0.67967095]
[1749412005826,0.22566939,106350.0,106340.0,0.67967095]
[1749412006032,0.22566939,106350.0,106340.0,0.68907439]
[1749412006159,0.22566939,106350.0,106340.0,0.69847774]
[1749412006781,0.22566939,106350.0,106340.0,0.72672574]
[1749412007306,0.21626675,106350.0,106340.0,0.72672574]
[1749412008311,0.21626675,106350.0,106340.0,0.71732239]
[1749412009767,0.21626675,106350.0,106340.0,0.14118833]
[1749412009973,0.2277612,106350.0,106340.0,0.28656]
[1749412010418,0.2277612,106350.0,106340.0,0.30110085]
[1749412026545,0.2277612,106350.0,106340.0,0.31050464]
[1749412028011,0.2124612,106350.0,106340.0,0.50798424]
[1749412031960,0.1974612,106350.0,106340.0,0.50798424]
[1749412037396,0.19555865,106350.0,106340.0,0.50798424]
[1749412043158,0.19555865,106350.0,106340.0,0.50703659]
[1749412043374,0.20496129,106350.0,106340.0,0.52584338]
[1749412043600,0.21069763,106360.0,106350.0,0.21200196]
[1749412044223,0.21069763,106360.0,106350.0,0.22700196]
[1749412044439,0.18815633,106360.0,106350.0,0.02954085]
[1749412044868,0.18915633,106360.0,106350.0,0.02954085]
[1749412045652,0.18920429,106360.0,106350.0,0.02954085]
[1749412047840,0.18920429,106360.0,106350.0,0.03894376]
[1749412048239,0.18920429,106360.0,106350.0,0.02954085]
[1749412050059,0.18920429,106360.0,106350.0,0.22700205]
[1749412050232,0.18920429,106360.0,106350.0,0.24310205]
[1749412051142,0.18920429,106360.0,106350.0,0.05504376]
[1749412053354,0.18920429,106360.0,106350.0,0.04564085]
[1749412053526,0.18920429,106360.0,106350.0,0.02954085]
[1749412053952,0.18920429,106360.0,106350.0,0.01454085]
[1749412083616,0.18920429,106360.0,106350.0,0.03024085]
[1749412104781,0.18920429,106360.0,106350.0,0.03069375]
[1749412114344,0.18920429,106360.0,106350.0,0.21875204]
[1749412114611,0.18920429,106360.0,106350.0,0.96602411]
[1749412114612,0.00104796,106360.0,106350.0,0.96602411]
[1749412115125,0.00104796,106360.0,106350.0,0.99427011]
[1749412115645,4.796e-05,106360.0,106350.0,0.99427011]
[1749412116139,4.796e-05,106360.0,106350.0,0.99627011]
[1749412120057,4.796e-05,106360.0,106350.0,0.99627005]
[1749412126575,4.796e-05,106360.0,106350.0,0.99627004]
[1749412134064,0.00944928,106360.0,106350.0,0.99627004]
[1749412134272,4.796e-05,106360.0,106350.0,0.99627004]
[1749412137428,4.796e-05,106360.0,106350.0,0.39860767]
[1749412137618,0.02825271,106360.0,106350.0,0.99627004]
[1749412137811,0.02825262,106360.0,106350.0,0.99627004]
[1749412138017,0.01885086,106360.0,106350.0,0.99627004]
[1749412139493,0.01885078,106360.0,106350.0,0.99627004]
[1749412143310,0.01885078,106360.0,106350.0,0.39860767]
[1749412143518,0.00944928,106360.0,106350.0,0.99627004]
[1749412143720,0.01885078,106360.0,106350.0,0.99627004]
[1749412143904,0.00944928,106360.0,106350.0,0.99627004]
[1749412144245,0.01885078,106360.0,106350.0,1.36707004]
[1749412144392,0.03765439,106360.0,106350.0,1.33577004]
[1749412144596,0.0376543,106360.0,106350.0,1.33577004]
[1749412145887,0.02825245,106360.0,106350.0,1.33577004]
[1749412146117,0.02825245,106360.0,106350.0,1.33577003]
[1749412146522,0.0376543,106360.0,106350.0,1.35147003]
[1749412146716,0.02825245,106360.0,106350.0,1.35147003]
[1749412146930,0.0376543,106360.0,106350.0,1.35147003]
[1749412147361,0.02825245,106360.0,106350.0,1.35147003]
[1749412147589,0.0376543,106360.0,106350.0,1.33577003]
[1749412147999,0.02825245,106360.0,106350.0,1.33577003]
[1749412148424,0.24689368,106360.0,106350.0,0.61762452]
[1749412148627,0.24689368,106360.0,106350.0,0.59878116]
[1749412148836,0.24689368,106360.0,106350.0,0.01699367]
[1749412149054,0.23749218,106360.0,106350.0,0.30139367]
[1749412149258,0.23749218,106360.0,106350.0,0.31079658]
[1749412149662,0.23749218,106360.0,106350.0,0.3201994]
[1749412150103,0.23749218,106360.0,106350.0,0.51766042]
[1749412150737,0.23749218,106360.0,106350.0,0.52706306]
[1749412151982,0.23749218,106360.0,106350.0,0.53646562]
[1749412152409,0.23749218,106360.0,106350.0,0.54571959]
[1749412153849,0.23749218,106360.0,106350.0,0.53646562]
[1749412156105,0.23749218,106360.0,106350.0,0.53646518]
[1749412157760,0.23749218,106360.0,106350.0,0.54573553]
[1749412158165,0.23749218,106360.0,106350.0,0.54573509]
[1749412158747,0.23749218,106360.0,106350.0,0.53633271]
[1749412159160,0.24689421,106360.0,106350.0,0.53633271]
[1749412159392,0.24689421,106360.0,106350.0,0.54573509]
[1749412161150,0.24689421,106360.0,106350.0,0.53633271]
[1749412161363,0.24689421,106360.0,106350.0,0.52693024]
[1749412167751,0.21629421,106360.0,106350.0,0.52693024]
[1749412167911,0.20689254,106360.0,106350.0,0.52693024]
[1749412168114,0.20689254,106360.0,106350.0,0.53633271]
[1749412169322,0.22689254,106360.0,106350.0,0.53633271]
[1749412170332,0.22689254,106360.0,106350.0,0.53653522]
[1749412173324,0.22689254,106360.0,106350.0,0.5459376]
[1749412173549,0.03885193,106360.0,106350.0,0.54593716]
[1749412173768,0.22689254,106360.0,106350.0,0.53653487]
[1749412177247,0.03885193,106360.0,106350.0,0.53653487]
[1749412182690,0.03885193,106360.0,106350.0,0.56478187]
[1749412184103,0.03885193,106360.0,106350.0,0.57418416]
[1749412186199,0.03885157,106360.0,106350.0,0.57418416]
[1749412186499,0.0482536,106360.0,106350.0,0.57418416]
[1749412187059,0.23629421,106360.0,106350.0,0.57418416]
[1749412189516,0.23629421,106360.0,106350.0,0.54593716]
[1749412190630,0.23629421,106360.0,106350.0,0.53653487]
[1749412190831,0.23629421,106360.0,106350.0,0.52713249]
[1749412190968,0.23629421,106360.0,106350.0,0.53653487]
[1749412191835,0.23629421,106360.0,106350.0,0.52713249]
[1749412192525,0.23629421,106360.0,106350.0,0.51773002]
[1749412195773,0.23629421,106360.0,106350.0,0.50845967]
[1749412196300,0.22689254,106360.0,106350.0,0.5084602]
[1749412196506,0.22689254,106360.0,106350.0,0.51786284]
[1749412204339,0.22689254,106360.0,106350.0,0.5272654]
[1749412205671,0.02004796,106360.0,106350.0,0.5272654]
[1749412205903,0.02004796,106360.0,106350.0,0.66516717]
[1749412207764,0.02944919,106360.0,106350.0,0.66516717]
[1749412208943,0.0388506,106360.0,106350.0,0.66516717]
[1749412209188,0.02944919,106360.0,106350.0,0.66516717]
[1749412209665,0.03885051,106360.0,106350.0,0.66516717]
[1749412211313,0.02944919,106360.0,106350.0,0.66516717]
[1749412211523,0.0388506,106360.0,106350.0,0.66516717]
[1749412213133,0.02944919,106360.0,106350.0,0.66516717]
[1749412213311,0.0388506,106360.0,106350.0,0.66516717]
[1749412214509,0.05765377,106360.0,106350.0,0.66516717]
[1749412214870,0.25509694,106360.0,106350.0,0.66516735]
[1749412215085,0.25509694,106360.0,106350.0,0.66516682]
[1749412215405,0.06705633,106360.0,106350.0,0.66516629]
[1749412216898,0.0576543,106360.0,106350.0,0.66516629]
[1749412217111,0.06705615,106360.0,106350.0,0.66516629]
[1749412222936,0.06705615,106360.0,106350.0,0.66516629]
[1749412224241,0.08705615,106360.0,106350.0,0.66516629]
[1749412226952,0.08705615,106360.0,106350.0,0.66397566]
[1749412228192,0.0776543,106360.0,106350.0,0.66397566]
[1749412228571,0.06825254,106360.0,106350.0,0.66397566]
[1749412229455,0.06825254,106360.0,106350.0,0.75033566]
[1749412230741,0.05885087,106360.0,106350.0,0.75033566]
[1749412231264,0.06825254,106360.0,106350.0,0.75033566]
[1749412234582,0.04825254,106360.0,106350.0,0.75033566]
[1749412236544,0.04825254,106360.0,106350.0,0.75049798]
[1749412237194,0.04825254,106360.0,106350.0,0.74968861]
[1749412237410,0.04825254,106360.0,106350.0,0.75168861]
[1749412238096,0.04825254,106360.0,106350.0,0.75368861]
[1749412238548,0.04825245,106360.0,106350.0,0.75368861]
[1749412243087,0.05765412,106360.0,106350.0,0.75368861]
[1749412245308,0.04825245,106360.0,106350.0,0.75368861]
[1749412245487,0.05765412,106360.0,106350.0,0.75368861]
[1749412245714,0.04825245,106360.0,106350.0,0.75368861]